bitfinex-derivatives/quotes_SOLF0:USTF0_20250216
["timestamp","ask_amount","ask_price","bid_price","bid_amount"]
[1739700420612,0.03931529,193.58,193.56,5.1654]
[1739700420808,0.03931529,193.58,193.55,0.03924003]
[1739700421014,12.58617142,193.65,193.57,7.42287142]
[1739700421208,12.58617142,193.65,193.6,5.1643]
[1739700421812,5.1638,193.63,193.59,5.1645]
[1739700422020,7.42287142,193.65,193.57,7.42287142]
[1739700422221,0.0353091,193.63,193.59,0.03468553]
[1739700423122,7.42287142,193.61,193.59,0.03468553]
[1739700423517,5.164,193.62,193.59,0.03468553]
[1739700425524,7.45818052,193.63,193.59,5.19918553]
[1739700425719,0.0353091,193.63,193.59,0.03468553]
[1739700427119,0.0353091,193.63,193.59,5.19938553]
[1739700428827,5.1991091,193.63,193.59,5.19938553]
[1739700429022,5.1991091,193.63,193.59,0.03468553]
[1739700429227,0.0353091,193.63,193.59,0.03468553]
[1739700429723,5.164,193.62,193.59,0.03468553]
[1739700430826,0.0353091,193.63,193.59,0.03468553]
[1739700431026,5.1991091,193.63,193.59,0.03468553]
[1739700431227,5.1991091,193.63,193.59,5.19938553]
[1739700433428,0.0353091,193.63,193.59,0.03468553]
[1739700433618,0.0353091,193.63,193.59,7.45755695]
[1739700434127,0.0353091,193.63,193.61,5.164]
[1739700434626,0.0353091,193.63,193.62,5.164]
[1739700435020,7.42287142,193.71,193.61,7.42287142]
[1739700435218,5.1619,193.7,193.65,5.1631]
[1739700435423,7.42287142,193.71,193.63,7.42287142]
[1739700435626,7.42287142,193.73,193.65,7.42287142]
[1739700435826,12.58417142,193.73,193.68,5.1623]
[1739700436027,7.42287142,193.75,193.67,7.42287142]
[1739700436228,0.03652338,193.72,193.69,0.03435706]
[1739700436730,0.03652338,193.72,193.69,7.45722848]
[1739700436926,0.03652338,193.72,193.71,7.42287142]
[1739700437123,151.13456161,193.79,193.71,7.42287142]
[1739700437529,7.42287142,193.79,193.71,7.42287142]
[1739700437728,7.42287142,193.77,193.69,7.42287142]
[1739700438328,0.03465499,193.75,193.71,0.03331515]
[1739700438625,5.1608,193.74,193.71,0.03331515]
[1739700438929,0.03465499,193.75,193.71,0.03331515]
[1739700439130,7.45752641,193.75,193.71,0.03331515]
[1739700439328,7.42287142,193.73,193.71,1.515e-05]
[1739700439625,5.1621,193.69,193.63,5.1637]
[1739700439829,5.1621,193.69,193.63,12.58657142]
[1739700440626,0.03370655,193.68,193.64,0.03461085]
[1739700441122,5.19630655,193.68,193.64,0.03461085]
[1739700441525,0.03370655,193.68,193.64,0.03461085]
[1739700441727,7.45657797,193.68,193.64,0.03461085]
[1739700442930,12.61907797,193.68,193.64,0.03461085]
[1739700443432,7.45657797,193.68,193.64,0.03461085]
[1739700444628,7.45657797,193.68,193.64,5.19801085]
[1739700445532,7.45657797,193.68,193.64,0.03461085]
[1739700445732,0.03370655,193.68,193.64,0.03461085]
[1739700445939,0.03370655,193.68,193.65,5.1629]
[1739700446124,0.03370655,193.68,193.64,0.03461085]
[1739700446734,0.03370655,193.68,193.67,5.1626]
[1739700448536,7.42287142,193.74,193.67,7.42287142]
[1739700448735,7.42287142,193.76,193.67,7.42287142]
[1739700448937,5.1609,193.74,193.7,5.1617]
[1739700449839,5.19896192,193.74,193.7,5.19980145]
[1739700450436,0.03806192,193.74,193.73,5.161]
[1739700451031,7.42287142,193.8,193.73,12.58387142]
[1739700452134,0.03340793,193.78,193.75,0.03518538]
[1739700452932,5.19310793,193.78,193.75,0.03518538]
[1739700454439,0.03340793,193.78,193.75,0.03518538]
[1739700456945,0.03340793,193.78,193.75,5.19568538]
[1739700457144,0.03340793,193.78,193.75,0.03518538]
[1739700457441,0.03340793,193.78,193.75,7.4580568]
[1739700457845,0.03340793,193.78,193.76,5.16]
[1739700458947,0.03340793,193.78,193.75,7.4580568]
[1739700459138,0.03340793,193.78,193.77,5.16]
[1739700459542,5.1589,193.82,193.75,10.7010568]
[1739700459746,5.1589,193.82,193.78,5.1596]
[1739700460446,5.1589,193.82,193.77,5.16]
[1739700462047,5.1589,193.81,193.77,5.16]
[1739700462245,5.1589,193.81,193.77,12.58287142]
[1739700462546,7.42287142,193.84,193.77,7.42287142]
[1739700462745,5.1586,193.83,193.78,5.1595]
[1739700463142,7.42287142,193.84,193.79,0.03934853]
[1739700463345,5.1587,193.82,193.79,0.03934853]
[1739700464239,5.159,193.81,193.79,0.03934853]
[1739700466041,7.42287142,193.84,193.79,0.03934853]
[1739700466344,5.1592,193.8,193.79,0.03934853]
[1739700466544,7.42287142,193.84,193.79,0.03934853]
[1739700467143,5.159,193.81,193.79,0.03934853]
[1739700467343,7.42287142,193.84,193.79,0.03934853]
[1739700467748,5.1591,193.81,193.79,0.03934853]
[1739700469043,7.42287142,193.84,193.79,0.03934853]
[1739700469248,5.1592,193.8,193.79,0.03934853]
[1739700480547,5.1588,193.82,193.79,5.19854853]
[1739700481059,5.1587,193.82,193.79,5.19864853]
[1739700481264,7.42287142,193.86,193.79,7.46221995]
[1739700481456,7.42287142,193.88,193.79,7.46221995]
[1739700482657,7.42287142,193.88,193.79,12.62141995]
[1739700483160,5.1582,193.84,193.79,12.62141995]
[1739700484256,7.42287142,193.86,193.79,12.62141995]
[1739700484456,5.1584,193.83,193.79,12.62141995]
[1739700485059,7.42287142,193.86,193.79,12.62141995]
[1739700485756,5.1581,193.84,193.79,7.46221995]
[1739700485962,7.42287142,193.88,193.81,5.1589]
[1739700486356,7.42287142,193.88,193.83,0.03747641]
[1739700486955,5.158,193.85,193.83,0.03747641]
[1739700487155,7.42287142,193.88,193.83,0.03747641]
[1739700488165,5.1581,193.84,193.83,0.03747641]
[1739700493569,75.95893731,193.89,193.83,0.03747641]
[1739700494168,75.95893731,193.89,193.83,5.19577641]
[1739700494472,7.42287142,193.9,193.83,12.61864783]
[1739700494663,15.51,193.98,193.85,5.1578]
[1739700494664,7.42287142,193.92,193.85,5.1578]
[1739700495069,7.42287142,193.92,193.83,7.46034783]
[1739700495269,7.42287142,193.92,193.84,5.1581]
[1739700495570,7.42287142,193.94,193.85,7.42287142]
[1739700495771,7.42287142,193.94,193.87,7.42287142]
[1739700495971,7.42287142,193.96,193.89,7.42287142]
[1739700496769,5.1555,193.94,193.89,7.42287142]
[1739700498470,7.42287142,193.96,193.89,7.42287142]
[1739700498675,5.1558,193.93,193.89,7.42287142]
[1739700499274,7.42287142,193.96,193.89,7.42287142]
[1739700499476,5.156,193.92,193.89,7.42287142]
[1739700499774,7.42287142,193.96,193.89,7.42287142]
[1739700500580,7.42287142,193.94,193.88,0.03341675]
[1739700500873,7.42287142,193.92,193.85,7.42287142]
[1739700501077,7.42287142,193.9,193.89,0.03641296]
[1739700501276,7.42287142,193.9,193.84,1.6582]
[1739700501472,7.42287142,193.9,193.88,0.03721892]
[1739700501878,5.157,193.89,193.88,0.03721892]
[1739700510587,7.42287142,193.98,193.88,0.03721892]
[1739700510787,7.42287142,193.98,193.9,7.42287142]
[1739700511085,5.1555,193.94,193.92,0.03733814]
[1739700511486,7.42287142,193.98,193.92,0.03733814]
[1739700512086,5.1556,193.94,193.92,0.03733814]
[1739700512482,7.42287142,193.98,193.92,0.03733814]
[1739700512886,5.1557,193.94,193.92,0.03733814]
[1739700513285,7.42287142,193.98,193.92,0.03733814]
[1739700515087,5.1555,193.94,193.92,0.03733814]
[1739700521282,5.1557,193.93,193.92,0.03733814]
[1739700523390,7.42287142,193.98,193.92,0.03733814]
[1739700523886,5.1551,193.96,193.92,0.03733814]
[1739700524286,7.42287142,193.98,193.92,0.03733814]
[1739700524983,5.1556,193.94,193.92,0.03733814]
[1739700528397,5.1552,193.95,193.92,0.03733814]
[1739700529493,5.1555,193.94,193.92,0.03733814]
[1739700529697,7.42287142,193.98,193.92,0.03733814]
[1739700531390,5.1554,193.95,193.92,0.03733814]
[1739700531700,7.42287142,193.98,193.92,0.03733814]
[1739700533296,5.1554,193.95,193.92,0.03733814]
[1739700533993,7.42287142,193.98,193.92,0.03733814]
[1739700534193,5.1555,193.94,193.92,0.03733814]
[1739700535000,5.1557,193.93,193.92,0.03733814]
[1739700541006,7.42287142,193.98,193.92,0.03733814]
[1739700541202,7.42287142,194.0,193.92,7.46020956]
[1739700541805,5.1548,193.97,193.92,12.61590956]
[1739700542000,7.42287142,194.0,193.92,12.61590956]
[1739700543608,5.155,193.96,193.92,12.61590956]
[1739700545005,5.1552,193.95,193.92,7.46020956]
[1739700545207,7.42287142,193.98,193.92,0.03733814]
[1739700545707,5.1557,193.93,193.92,0.03733814]
[1739700546603,7.42287142,193.94,193.84,7.42287142]
[1739700546806,5.1571,193.88,193.84,7.42287142]
[1739700547008,7.42287142,193.91,193.84,7.42287142]
[1739700547810,0.03837551,193.89,193.86,0.03791518]
[1739700549106,5.19527551,193.89,193.86,0.03791518]
[1739700552115,0.03837551,193.89,193.86,0.03791518]
[1739700553218,0.03837551,193.89,193.88,7.42287142]
[1739700553617,0.03837551,193.89,193.88,12.57987142]
[1739700555312,0.03837551,193.89,193.88,5.157]
[1739700556320,0.03837551,193.89,193.88,12.57987142]
[1739700567928,5.1547,193.97,193.88,7.42287142]
[1739700568125,5.1547,193.97,193.91,7.42287142]
[1739700568326,5.1547,193.97,193.93,5.1555]
[1739700568834,5.1547,193.97,193.93,5.18966967]
[1739700569333,5.1547,193.97,193.93,0.03416967]
[1739700570134,5.1541,194.0,193.93,7.45704109]
[1739700570931,7.42287142,194.01,193.93,7.45704109]
[1739700571333,4.5739,194.05,193.95,7.42287142]
[1739700571334,7.42287142,194.03,193.95,7.42287142]
[1739700571836,7.42287142,194.03,193.97,0.03393183]
[1739700572037,5.1542,193.99,193.97,0.03393183]
[1739700572937,5.1544,193.98,193.97,0.03393183]
[1739700573328,5.1544,193.98,193.97,3.183e-05]
[1739700575431,5.1567,193.9,193.87,7.42287142]
[1739700575929,7.42287142,193.93,193.87,7.42287142]
[1739700576135,5.1565,193.91,193.87,7.42287142]
[1739700576535,5.19180988,193.91,193.87,7.46213842]
[1739700578434,0.03530988,193.91,193.87,7.46213842]
[1739700578638,0.03530988,193.91,193.89,7.42287142]
[1739700580649,5.19160988,193.91,193.89,7.42287142]
[1739700581345,0.03530988,193.91,193.9,5.1565]
[1739700582543,7.42287142,193.99,193.93,5.1557]
[1739700582840,7.42287142,194.01,193.94,7.42287142]
[1739700583039,5.1543,193.99,193.95,5.1551]
[1739700583344,7.42287142,194.03,193.94,7.42287142]
[1739700583741,7.42287142,194.03,193.97,0.03737623]
[1739700584743,5.1538,194.01,193.97,0.03737623]
[1739700584935,7.42287142,194.03,193.97,0.03737623]
[1739700585142,7.42287142,194.05,193.97,0.03737623]
[1739700585343,5.1535,194.02,193.98,7.42287142]
[1739700585643,7.42287142,194.05,193.98,7.42287142]
[1739700585644,7.42287142,194.05,193.99,0.03598935]
[1739700586347,7.42287142,194.03,193.99,0.03598935]
[1739700586545,5.1538,194.01,193.99,0.03598935]
[1739700587044,5.1539,194.0,193.99,0.03598935]
[1739700588343,5.1538,194.01,193.99,0.03598935]
[1739700588543,7.42287142,194.05,193.99,0.03598935]
[1739700589346,5.1538,194.01,193.99,0.03598935]
[1739700590541,7.42287142,194.05,193.99,0.03598935]
[1739700591051,5.1537,194.01,193.99,0.03598935]
[1739700592252,5.1539,194.0,193.99,0.03598935]
[1739700593050,7.42287142,194.05,193.99,0.03598935]
[1739700593051,5.1535,194.02,193.99,0.03598935]
[1739700593449,7.42287142,194.05,193.99,0.03598935]
[1739700594156,7.42287142,194.07,193.99,0.03598935]
[1739700594455,7.42287142,194.09,194.02,7.42287142]
[1739700594955,5.1525,194.06,194.04,0.03602058]
[1739700595154,7.42287142,194.11,194.04,0.03602058]
[1739700595759,5.1522,194.07,194.04,0.03602058]
[1739700595952,7.42287142,194.11,194.04,7.458892]
[1739700596154,7.42287142,194.13,194.06,7.42287142]
[1739700596954,5.1515,194.1,194.06,7.42287142]
[1739700597259,7.42287142,194.13,194.06,7.42287142]
[1739700597555,5.152,194.07,194.06,7.42287142]
[1739700597756,7.42287142,194.13,194.06,7.42287142]
[1739700598158,5.1515,194.09,194.06,7.42287142]
[1739700598456,7.42287142,194.13,194.06,7.42287142]
[1739700598648,7.42287142,194.13,194.06,7.45705486]
[1739700599052,5.152,194.07,194.06,0.03418344]
[1739700599455,7.42287142,194.13,194.06,7.45705486]
[1739700599655,7.42287142,194.15,194.06,7.42287142]
[1739700599957,7.42287142,194.13,194.08,0.03385373]
[1739700600158,5.1513,194.1,194.08,0.03385373]
[1739700600462,7.42287142,194.15,194.08,0.03385373]
[1739700600651,5.1515,194.09,194.08,0.03385373]
[1739700600850,7.42287142,194.09,194.0,7.42287142]
[1739700601547,5.1523,194.06,194.02,7.42287142]
[1739700602054,5.18895514,194.06,194.02,7.46191097]
[1739700602356,0.03665514,194.06,194.04,7.42287142]
[1739700603056,0.03665514,194.06,194.04,12.57567142]
[1739700603459,0.03665514,194.06,194.04,7.42287142]
[1739700603660,0.03665514,194.06,194.04,12.57567142]
[1739700604560,0.03665514,194.06,194.04,7.42287142]
[1739700605650,0.03665514,194.06,194.05,5.1525]
[1739700606057,0.03665514,194.06,194.04,7.42287142]
[1739700606353,0.03665514,194.06,194.04,12.57547142]
[1739700608657,0.03665514,194.06,194.04,7.42287142]
[1739700608857,5.1525,194.05,194.02,7.46191097]
[1739700609056,0.03665514,194.06,194.02,7.46191097]
[1739700609663,5.18905514,194.06,194.02,7.46191097]
[1739700610462,0.03665514,194.06,194.03,5.153]
[1739700611167,0.03665514,194.06,194.04,12.57557142]
[1739700611360,0.03665514,194.06,194.02,7.46191097]
[1739700612468,0.03665514,194.06,194.02,0.03903955]
[1739700613766,5.1531,194.03,194.02,0.03903955]
[1739700614965,5.1528,194.04,194.02,0.03903955]
[1739700615564,5.1531,194.03,194.02,0.03903955]
[1739700615969,7.42287142,194.03,193.94,7.42287142]
[1739700616166,7.42287142,194.01,193.94,7.42287142]
[1739700617065,5.1541,193.99,193.96,0.03891809]
[1739700617268,5.18958293,193.99,193.96,0.03891809]
[1739700617475,5.1545,193.98,193.96,0.03891809]
[1739700617972,5.1547,193.97,193.96,0.03891809]
[1739700623674,7.42287142,193.97,193.9,7.42287142]
[1739700623972,5.1559,193.93,193.9,7.42287142]
[1739700624369,7.42287142,193.97,193.9,7.42287142]
[1739700624577,7.42287142,193.97,193.88,7.42287142]
[1739700625075,5.156,193.92,193.91,0.03915085]
[1739700625374,7.42287142,193.95,193.88,7.42287142]
[1739700625575,0.03624312,193.93,193.9,0.03458874]
[1739700627780,5.19194312,193.93,193.9,0.03458874]
[1739700629273,0.03624312,193.93,193.9,0.03458874]
[1739700629474,5.156,193.92,193.9,0.03458874]
[1739700630079,0.03624312,193.93,193.9,0.03458874]
[1739700630279,5.19194312,193.93,193.9,0.03458874]
[1739700630476,0.03624312,193.93,193.9,0.03458874]
[1739700630778,7.45911454,193.93,193.9,0.03458874]
[1739700631078,7.42287142,193.91,193.84,7.42287142]
[1739700631782,5.1575,193.87,193.84,7.42287142]
[1739700632078,5.1575,193.87,193.84,7.45764037]
[1739700632269,5.19536734,193.87,193.84,7.45764037]
[1739700632572,5.1577,193.86,193.84,7.45764037]
[1739700632773,0.03786734,193.87,193.84,7.45764037]
[1739700635274,0.03786734,193.87,193.86,5.1576]
[1739700636476,0.03786734,193.87,193.86,12.58047142]
[1739700636981,0.03786734,193.87,193.86,7.42287142]
[1739700637975,0.03786734,193.87,193.86,12.58047142]
[1739700639484,0.03786734,193.87,193.86,7.42287142]
[1739700641082,0.03786734,193.87,193.86,12.58047142]
[1739700642074,5.1553,193.95,193.86,7.42287142]
[1739700642278,5.1553,193.95,193.9,7.42287142]
[1739700642684,76.95256375,194.0,193.92,7.42287142]
[1739700643382,0.03520874,193.98,193.94,0.03407472]
[1739700643686,0.03520874,193.98,193.95,5.1551]
[1739700643886,0.03520874,193.98,193.94,0.03407472]
[1739700645182,0.03520874,193.98,193.94,5.18927472]
[1739700645987,0.03520874,193.98,193.94,0.03407472]
[1739700647985,0.03520874,193.98,193.94,5.18947472]
[1739700648486,5.18960874,193.98,193.94,0.03407472]
[1739700649281,0.03520874,193.98,193.94,0.03407472]
[1739700649487,0.03520874,193.98,193.94,5.18947472]
[1739700653293,5.18960874,193.98,193.94,5.18947472]
[1739700653781,0.03520874,193.98,193.94,0.03407472]
[1739700654487,0.03520874,193.98,193.96,5.1547]
[1739700654884,0.03520874,193.98,193.97,5.1547]
[1739700657183,0.03520874,193.98,193.96,5.1548]
[1739700658487,0.03520874,193.98,193.97,5.1547]
[1739700660493,0.03520874,193.98,193.94,0.03407472]
[1739700660692,0.03520874,193.98,193.96,5.1547]
[1739700660893,0.03520874,193.98,193.94,0.03407472]
[1739700661194,0.03520874,193.98,193.95,5.155]
[1739700661894,5.18970874,193.98,193.95,5.155]
[1739700662293,0.03520874,193.98,193.94,0.03407472]
[1739700662594,5.1547,193.97,193.94,5.18947472]
[1739700663095,5.18960874,193.98,193.95,5.1551]
[1739700663397,0.03520874,193.98,193.94,0.03407472]
[1739700663588,0.03520874,193.98,193.96,7.34985367]
[1739700664495,0.03520874,193.98,193.96,12.50455367]
[1739700666195,0.03520874,193.98,193.97,5.1546]
[1739700666596,0.03520874,193.98,193.96,7.34985367]
[1739700666800,5.1546,193.97,193.94,7.38392839]
[1739700668198,5.1546,193.97,193.94,12.53932839]
[1739700668601,5.1546,193.97,193.94,7.38392839]
[1739700668792,5.1546,193.97,193.95,5.1552]
[1739700669299,5.1546,193.97,193.94,12.53932839]
[1739700669495,5.155,193.96,193.94,0.03407472]
[1739700671494,5.1552,193.95,193.94,0.03407472]
[1739700672197,5.1547,193.97,193.94,0.03407472]
[1739700672400,0.03520874,193.98,193.94,0.03407472]
[1739700672696,5.1548,193.97,193.94,0.03407472]
[1739700673501,5.18960874,193.98,193.94,5.18947472]
[1739700673694,0.03520874,193.98,193.94,7.38392839]
[1739700674101,0.03520874,193.98,193.95,5.1551]
[1739700674905,0.03520874,193.98,193.94,7.38392839]
[1739700675105,0.03520874,193.98,193.95,5.1549]
[1739700675401,0.03520874,193.98,193.94,7.38392839]
[1739700675710,0.03520874,193.98,193.94,0.03407472]
[1739700676706,5.1549,193.97,193.94,0.03407472]
[1739700677208,5.155,193.96,193.94,0.03407472]
[1739700677603,0.03520874,193.98,193.94,0.03407472]
[1739700677808,5.1547,193.97,193.94,0.03407472]
[1739700678009,0.03520874,193.98,193.94,0.03407472]
[1739700678216,5.18970874,193.98,193.94,12.53912839]
[1739700680713,5.1547,193.97,193.94,7.38392839]
[1739700680913,5.1547,193.97,193.94,0.03407472]
[1739700682915,5.1549,193.96,193.94,0.03407472]
[1739700684315,5.1552,193.95,193.94,0.03407472]
[1739700685414,5.155,193.96,193.94,0.03407472]
[1739700688018,5.1552,193.95,193.94,0.03407472]
[1739700691919,5.1571,193.88,193.82,28.56957377]
[1739700692224,7.34985367,193.9,193.82,28.56957377]
[1739700692425,7.34985367,193.88,193.82,21.2197201]
[1739700692627,7.34985367,193.88,193.81,28.29296013]
[1739700693025,0.03279114,193.86,193.83,0.03710171]
[1739700694834,0.03279114,193.86,193.83,5.19540171]
[1739700695130,0.03279114,193.86,193.83,0.03710171]
[1739700695730,0.03279114,193.86,193.84,7.34985367]
[1739700696932,0.03279114,193.86,193.85,5.1578]
[1739700697832,193.0,193.95,193.84,7.34985367]
[1739700698032,193.0,193.95,193.88,7.34985367]
[1739700698232,5.1557,193.93,193.88,7.34985367]
[1739700698433,193.0,193.95,193.88,7.34985367]
[1739700699030,5.1916506,193.93,193.9,0.03442781]
[1739700699528,0.0357506,193.93,193.9,0.03442781]
[1739700699729,5.156,193.92,193.9,0.03442781]
[1739700702932,0.0357506,193.93,193.9,0.03442781]
[1739700703136,5.1562,193.91,193.9,0.03442781]
[1739700711644,5.1917506,193.93,193.9,0.03442781]
[1739700711842,0.0357506,193.93,193.9,0.03442781]
[1739700712351,5.156,193.92,193.9,0.03442781]
[1739700712940,5.1915506,193.93,193.9,0.03442781]
[1739700713343,0.0357506,193.93,193.9,0.03442781]
[1739700713542,5.1562,193.92,193.9,0.03442781]
[1739700714941,0.0357506,193.93,193.9,0.03442781]
[1739700715143,5.1562,193.91,193.9,0.03442781]
[1739700716542,5.1561,193.92,193.9,0.03442781]
[1739700718651,0.0357506,193.93,193.9,0.03442781]
[1739700718847,0.0357506,193.93,193.9,7.38428148]
[1739700719248,0.0357506,193.93,193.92,7.34985367]
[1739700719450,0.0357506,193.93,193.92,12.50585367]
[1739700719650,7.34985367,194.02,193.92,7.34985367]
[1739700719844,7.34985367,194.02,193.95,7.34985367]
[1739700720049,5.1543,193.99,193.95,7.34985367]
[1739700720250,7.34985367,194.02,193.95,7.34985367]
[1739700720643,5.1539,194.0,193.95,7.34985367]
[1739700720850,5.19113063,194.0,193.97,0.0383568]
[1739700721049,0.03723063,194.0,193.97,0.0383568]
[1739700721250,5.1544,193.98,193.97,0.0383568]
[1739700721953,12.50425367,193.98,193.97,0.0383568]
[1739700722552,12.50425367,193.98,193.97,5.68e-05]
[1739700726454,5.157,193.88,193.85,7.34985367]
[1739700726846,7.34985367,193.92,193.83,12.01305367]
[1739700727053,5.1578,193.86,193.83,1.5538]
[1739700727451,5.1579,193.85,193.83,1.5538]
[1739700727647,5.1579,193.85,193.83,1.5885377]
[1739700728452,0.03904164,193.86,193.83,1.5885377]
[1739700728658,5.1581,193.84,193.83,0.0347377]
[1739700731259,5.1581,193.85,193.83,0.0347377]
[1739700732556,7.38889531,193.86,193.83,0.0347377]
[1739700732762,5.1581,193.84,193.83,0.0347377]
[1739700733364,12.50795367,193.84,193.83,0.0347377]
[1739700735268,7.34985367,193.84,193.73,10.52625367]
[1739700735469,7.34985367,193.81,193.73,10.52625367]
[1739700735766,7.34985367,193.81,193.73,7.34985367]
[1739700736163,5.1599,193.78,193.73,7.34985367]
[1739700736467,7.38299769,193.77,193.74,0.03563208]
[1739700736767,5.1602,193.76,193.74,0.03563208]
[1739700737161,7.38748559,193.77,193.74,0.03563208]
[1739700737868,12.54768559,193.77,193.74,0.03563208]
[1739700738161,7.38748559,193.77,193.74,0.03563208]
[1739700738869,12.54748559,193.77,193.74,0.03563208]
[1739700739369,0.03763192,193.77,193.74,0.03563208]
[1739700739766,0.03763192,193.77,193.75,7.34985367]
[1739700740066,0.03763192,193.77,193.76,5.1602]
[1739700740861,7.34985367,193.87,193.75,7.34985367]
[1739700741061,7.34985367,193.89,193.82,7.34985367]
[1739700741262,143.71169019,193.93,193.84,7.34985367]
[1739700741465,7.34985367,193.94,193.86,7.34985367]
[1739700742064,0.03577566,193.92,193.88,0.03901099]
[1739700744871,5.19187566,193.92,193.88,0.03901099]
[1739700745563,5.1563,193.91,193.88,0.03901099]
[1739700746166,5.1566,193.9,193.88,0.03901099]
[1739700748971,0.03577566,193.92,193.88,0.03901099]
[1739700748972,5.1568,193.89,193.88,0.03901099]
[1739700750171,5.1578,193.86,193.78,1.5639]
[1739700750472,11.49536064,193.91,193.78,1.5639]
[1739700751374,0.03813827,193.86,193.83,0.03272367]
[1739700751775,5.1578,193.85,193.83,0.03272367]
[1739700754877,0.03813827,193.86,193.83,0.03272367]
[1739700755083,5.1581,193.84,193.83,0.03272367]
[1739700763689,12.55846488,193.86,193.83,0.03272367]
[1739700763878,7.40066488,193.86,193.83,0.03272367]
[1739700764286,12.52062661,193.84,193.83,0.03272367]
[1739700780204,5.1581,193.84,193.83,0.03272367]
[1739700780399,5.1579,193.85,193.83,0.03272367]
[1739700780797,7.40066488,193.86,193.83,0.03272367]
[1739700780993,5.1581,193.84,193.83,0.03272367]
[1739700781898,12.52062661,193.84,193.83,0.03272367]
[1739700787505,5.1581,193.84,193.83,0.03272367]
[1739700787800,5.1579,193.85,193.83,0.03272367]
[1739700788703,7.40066488,193.86,193.83,0.03272367]
[1739700788903,5.1578,193.85,193.83,0.03272367]
[1739700790001,5.1581,193.84,193.83,0.03272367]
[1739700790901,5.19573827,193.86,193.83,0.03272367]
[1739700792103,0.03813827,193.86,193.83,0.03272367]
[1739700795105,5.1581,193.85,193.83,0.03272367]
[1739700796809,0.03813827,193.86,193.84,5.1581]
[1739700797604,0.03813827,193.86,193.83,1.58412367]
[1739700797804,123.16252661,193.94,193.84,7.36252661]
[1739700798007,123.16252661,193.94,193.86,7.36252661]
[1739700798211,7.36252661,193.94,193.86,7.36252661]
[1739700798406,7.36252661,193.94,193.88,5.157]
[1739700798606,193.0,193.95,193.88,12.51952661]
[1739700798807,0.0364857,193.93,193.9,0.03253617]
[1739700799710,5.1562,193.91,193.9,0.03253617]
[1739700800904,5.1562,193.91,193.9,3.617e-05]
[1739700801101,7.36252661,193.92,193.78,7.36252661]
[1739700801305,7.36252661,193.85,193.77,29.86616013]
[1739700801910,5.1584,193.83,193.78,5.1597]
[1739700802111,7.36252661,193.85,193.77,29.86616013]
[1739700802318,0.03953659,193.82,193.79,0.03448625]
[1739700803312,0.03953659,193.82,193.79,5.19388625]
[1739700804613,0.03953659,193.82,193.8,5.1591]
[1739700804911,0.03953659,193.82,193.79,0.03448625]
[1739700805409,0.03953659,193.82,193.8,5.159]
[1739700807315,0.03953659,193.82,193.81,5.1589]
[1739700809318,5.1578,193.86,193.8,7.36252661]
[1739700809517,5.1578,193.86,193.83,5.1583]
[1739700810419,5.1578,193.86,193.8,7.36252661]
[1739700810620,5.19588795,193.86,193.82,5.1586]
[1739700813320,5.19588795,193.86,193.8,7.36252661]
[1739700813522,0.03808795,193.86,193.8,7.36252661]
[1739700813722,0.03808795,193.86,193.84,7.36252661]
[1739700813921,7.36252661,193.93,193.84,7.36252661]
[1739700814122,5.1566,193.9,193.86,7.36252661]
[1739700814324,5.1566,193.9,193.84,7.36252661]
[1739700815127,0.03757039,193.89,193.86,5.1575]
[1739700817333,0.03757039,193.89,193.87,5.1573]
[1739700817526,0.03757039,193.89,193.86,7.36252661]
[1739700817726,0.03757039,193.89,193.88,7.36252661]
[1739700818130,0.03757039,193.89,193.88,12.51952661]
[1739700818529,0.03757039,193.89,193.88,5.157]
[1739700820628,0.03757039,193.89,193.87,5.1573]
[1739700820930,5.19457039,193.89,193.86,1.6008]
[1739700821128,0.03757039,193.89,193.85,5.1957528]
[1739700822035,5.1571,193.88,193.85,5.1957528]
[1739700822334,7.400097,193.89,193.85,0.0379528]
[1739700822829,5.1573,193.88,193.85,0.0379528]
[1739700823032,7.400097,193.89,193.85,0.0379528]
[1739700824032,5.1571,193.88,193.85,0.0379528]
[1739700828040,7.400097,193.89,193.85,0.0379528]
[1739700828239,5.1573,193.87,193.85,0.0379528]
[1739700829040,7.400097,193.89,193.85,0.0379528]
[1739700829231,5.1576,193.86,193.85,0.0379528]
[1739700834138,5.1571,193.88,193.85,0.0379528]
[1739700834541,7.400097,193.89,193.85,0.0379528]
[1739700834738,5.1575,193.87,193.85,0.0379528]
[1739700835443,7.400097,193.89,193.85,0.0379528]
[1739700836146,5.1571,193.88,193.85,0.0379528]
[1739700836342,0.03757039,193.89,193.85,0.0379528]
[1739700836847,5.19457039,193.89,193.85,5.1956528]
[1739700837944,5.1571,193.88,193.85,5.1956528]
[1739700838545,5.19447039,193.89,193.85,5.1956528]
[1739700838746,5.19447039,193.89,193.86,5.1576]
[1739700838949,5.19447039,193.89,193.85,0.0379528]